[Event "CZE-ch Youth B16 2022"]
[Site "Luhacovice"]
[Date "2022.03.14"]
[Round "4.5"]
[White "Janous, Marek"]
[Black "Mametev, Artem"]
[Result "1-0"]
[ECO "A16"]
[WhiteElo "2056"]
[BlackElo "1848"]
[Annotator "ChessBase"]
[PlyCount "79"]
[EventDate "2022.03.12"]
[EventType "swiss"]
[EventCountry "CZE"]
[SourceTitle "playchess.com"]
[Source "ChessBase"]
[SourceQuality "1"]
[TimeControl "40/5400+30:1800+30"]

1. c4 {[%emt 0:00:42]} Nf6 {[%emt 0:00:57]} 2. Nc3 {[%emt 0:00:06]} g6 {[%emt 0:00:04]} 3. g3 {[%emt 0:00:06]} Bg7 {[%emt 0:00:05]} 4. Bg2 {[%emt 0:00:04]} O-O {[%emt 0:00:08]} 5. d3 {[%emt 0:01:24]} d6 {[%emt 0:00:14]} 6. Nf3 {[%emt 0:00:51]} e5 {[%emt 0:00:39]} 7. O-O {[%emt 0:00:19]} c6 {[%emt 0:00:25]} 8. Rb1 {[%emt 0:00:55]} h6 {[%emt 0:12:59]} 9. Qc2 {[%emt 0:09:20]} Be6 {[%emt 0:02:09]} 10. b4 {[%emt 0:03:07]} Nbd7 {[%emt 0:00:42]} 11. b5 {[%emt 0:04:57]} Qc7 {[%emt 0:06:31]} 12. Nd2 {[%emt 0:02:45]} Nc5 {[%emt 0:11:57]} 13. Ba3 {[%emt 0:06:08]} Nfd7 {[%emt 0:00:14]} 14. bxc6 {[%emt 0:03:14]} bxc6 {[%emt 0:00:02]} 15. Nde4 {[%emt 0:01:55]} f5 {[%emt 0:03:47]} 16. Nxc5 {[%emt 0:00:55]} Nxc5 {[%emt 0:00:04]} 17. Bxc5 {[%emt 0:06:44]} dxc5 {[%emt 0:00:01]} 18. Na4 {[%emt 0:00:59]} Qa5 {[%emt 0:06:54]} 19. Bxc6 {[%emt 0:03:23]} Rab8 {[%emt 0:00:02]} 20. Rb5 {[%emt 0:07:29]} Rxb5 {[%emt 0:02:50]} 21. cxb5 {[%emt 0:00:27]} e4 {[%emt 0:03:43]} 22. dxe4 {[%emt 0:04:23]} c4 {[%emt 0:00:27]} 23. Nc5 {[%emt 0:01:00]} Bf7 {[%emt 0:00:44]} 24. exf5 {[%emt 0:00:47]} gxf5 {[%emt 0:00:21]} 25. Qxf5 {[%emt 0:03:20]} Be8 {[%emt 0:01:23]} 26. Qe6+ {[%emt 0:00:50]} Bf7 {[%emt 0:00:04]} 27. Qg4 {[%emt 0:02:20]} c3 {[%emt 0:01:49]} 28. Nd7 {[%emt 0:34:21]} Qd8 {[%emt 0:01:47]} 29. Nxf8 {[%emt 0:00:36]} Kxf8 {[%emt 0:00:59]} 30. Qf5 {[%emt 0:00:46]} Bf6 {[%emt 0:05:35]} 31. Be4 {[%emt 0:00:44]} Bxa2 {[%emt 0:00:42]} 32. Bc2 {[%emt 0:00:39]} Ke7 {[%emt 0:00:57]} 33. Rd1 {[%emt 0:00:13]} Qe8 {[%emt 0:00:24]} 34. Qe4+ {[%emt 0:00:31]} Kf8 {[%emt 0:00:14]} 35. Qf5 {[%emt 0:00:30]} Qe7 {[%emt 0:00:42]} 36. Qc8+ {[%emt 0:00:30]} Qe8 {[%emt 0:00:15]} 37. Qc5+ {[%emt 0:00:41]} Qe7 {[%emt 0:00:10]} 38. Qh5 {[%emt 0:00:23]} Bg5 {[%emt 0:01:40]} 39. Rd3 {[%emt 0:00:52]} Bf7 {[%emt 0:00:16]} 40. Qf3 {[%emt 0:00:24]} 1-0

[Event "CZE-ch Youth B16 2022"]
[Site "Luhacovice"]
[Date "2022.03.14"]
[Round "4.6"]
[White "Kubiczek, Michal"]
[Black "Bezdek, Tomas"]
[Result "0-1"]
[ECO "A40"]
[WhiteElo "1720"]
[BlackElo "1855"]
[Annotator "NA"]
[PlyCount "62"]
[EventDate "2022.03.12"]
[EventType "swiss"]
[EventCountry "CZE"]
[SourceTitle "playchess.com"]
[Source "ChessBase"]
[SourceQuality "1"]
[TimeControl "40/5400+30:1800+30"]

1. d4 {[%emt 0:00:09]} Nf6 {[%emt 0:00:22]} 2. c4 {[%emt 0:00:27]} e6 {[%emt 0:00:08]} 3. g3 {[%emt 0:00:25]} d5 {[%emt 0:02:32]} 4. Nf3 {[%emt 0:00:20]} b6 {[%emt 0:00:49]} 5. Bg2 {[%emt 0:00:19]} Bb7 {[%emt 0:00:08]} 6. O-O {[%emt 0:01:18]} Be7 {[%emt 0:00:31]} 7. Nc3 {[%emt 0:00:14]} O-O {[%emt 0:00:09]} 8. Ne5 {[%emt 0:00:08] 8.cxd5 is the fancy move.} c5 {[%emt 0:04:22]} (8... Nbd7 $11) 9. cxd5 {[%emt 0:04:19]} exd5 {[%emt 0:02:04]} 10. dxc5 {[%emt 0:06:17]} Bxc5 {[%emt 0:04:39]} 11. Qa4 {[%emt 0:03:16]} Qe7 {[%emt 0:04:56] [#]} 12. Bf4 $146 {[%emt 0:15:34]} ({Predecessor:} 12. Nd3 d4 13. Bxb7 Qxb7 14. Nb5 a6 15. Na3 Nbd7 16. b4 {½-½ (17) Vazelakis,D (2007)-Kalogridakis,T (1676) Nea Filadelfia 2012}) 12... d4 {[%emt 0:23:36]} 13. Bxb7 {[%emt 0:08:10]} Qxb7 {[%emt 0:00:19]} 14. Nb5 {[%emt 0:00:46]} Nc6 {[%emt 0:02:59]} 15. Nxc6 {[%emt 0:07:39]} Qxc6 {[%emt 0:01:39]} 16. Qc4 {[%emt 0:02:54]} Qd7 {[%emt 0:32:17]} (16... Rfc8 $11) 17. b4 {[%emt 0:12:54]} Qh3 {[%emt 0:01:21]} 18. f3 {[%emt 0:01:28]} Be7 {[%emt 0:00:20]} 19. Nxd4 {[%emt 0:02:05]} ({Don't play} 19. Qxd4 Rfd8 20. Qb2 Nd5 $11) 19... Rac8 {[%emt 0:03:14]} 20. Qb3 {[%emt 0:02:18]} Rfd8 {[%emt 0:01:33]} 21. Rad1 {[%emt 0:03:23]} Nd5 {[%emt 0:01:14]} 22. Bd2 {[%emt 0:01:42]} Bf6 {[%emt 0:03:26]} 23. Nc2 {[%emt 0:06:18]} (23. e3 $11) 23... Re8 {[%emt 0:03:31]} 24. e4 {[%emt 0:05:53]} Nc3 {[%emt 0:00:06]} 25. Rde1 {[%emt 0:01:12]} Red8 $15 {[%emt 0:01:14]} 26. Rf2 {[%emt 0:04:58]} Rd3 {[%emt 0:01:08]} 27. Re3 {[%emt 0:01:04]} Ne2+ {[%emt 0:00:31]} 28. Rfxe2 {[%emt 0:01:22]} Rxb3 {[%emt 0:00:18]} 29. Rxb3 {[%emt 0:00:35]} Rxc2 {[%emt 0:00:18]} 30. e5 {[%emt 0:00:22]} Be7 {[%emt 0:01:02]} 31. Ra3 {[%emt 0:00:38]} Qd7 {[%emt 0:00:37]} 0-1

[Event "CZE-ch Youth B16 2022"]
[Site "Luhacovice"]
[Date "2022.03.14"]
[Round "4.7"]
[White "Dedek, Jan"]
[Black "Pelc, Adam"]
[Result "1/2-1/2"]
[ECO "E16"]
[WhiteElo "1963"]
[BlackElo "1811"]
[Annotator "ChessBase"]
[PlyCount "121"]
[EventDate "2022.03.12"]
[EventType "swiss"]
[EventCountry "CZE"]
[SourceTitle "playchess.com"]
[Source "ChessBase"]
[SourceQuality "1"]
[TimeControl "40/5400+30:1800+30"]

1. d4 {[%emt 0:00:19]} Nf6 {[%emt 0:00:25]} 2. c4 {[%emt 0:00:26]} e6 {[%emt 0:00:30]} 3. Nf3 {[%emt 0:00:07]} b6 {[%emt 0:00:50]} 4. g3 {[%emt 0:00:31]} Bb7 {[%emt 0:01:08]} 5. Bg2 {[%emt 0:00:51]} Bb4+ {[%emt 0:01:59]} 6. Bd2 {[%emt 0:04:25]} Bxd2+ {[%emt 0:00:51]} 7. Qxd2 {[%emt 0:01:09]} O-O {[%emt 0:01:21]} 8. Nc3 {[%emt 0:01:52]} d6 {[%emt 0:03:03]} 9. O-O {[%emt 0:00:35]} Nbd7 {[%emt 0:00:16]} 10. Qc2 {[%emt 0:02:20]} Qe7 {[%emt 0:04:59]} 11. e4 {[%emt 0:05:54]} e5 {[%emt 0:02:31]} 12. d5 {[%emt 0:00:59]} a6 {[%emt 0:08:46]} 13. b4 {[%emt 0:11:15]} Rac8 {[%emt 0:07:22]} 14. Rab1 {[%emt 0:06:12]} c6 {[%emt 0:03:03]} 15. dxc6 {[%emt 0:03:00]} Rxc6 {[%emt 0:02:47]} 16. Nd5 {[%emt 0:03:31]} Nxd5 {[%emt 0:00:30]} 17. exd5 {[%emt 0:00:08]} Rc7 {[%emt 0:00:39]} 18. Nd2 {[%emt 0:01:44]} f5 {[%emt 0:03:37]} 19. Rfc1 {[%emt 0:02:26]} e4 {[%emt 0:02:39]} 20. Qb3 {[%emt 0:01:25]} Rfc8 {[%emt 0:00:55]} 21. Rd1 {[%emt 0:09:23]} Kh8 {[%emt 0:01:55]} 22. Nf1 {[%emt 0:05:12]} Rxc4 {[%emt 0:07:02]} 23. Ne3 {[%emt 0:01:52]} Rc3 {[%emt 0:00:32]} 24. Qb2 {[%emt 0:00:50]} Qf6 {[%emt 0:00:21]} 25. Qe2 {[%emt 0:02:40]} Ne5 {[%emt 0:01:44]} 26. Qh5 {[%emt 0:01:49]} g6 {[%emt 0:01:22]} 27. Qh6 {[%emt 0:00:26]} Nc4 {[%emt 0:14:13]} 28. Nxc4 {[%emt 0:03:05]} R3xc4 {[%emt 0:00:48]} 29. Rbc1 {[%emt 0:00:12]} Bxd5 {[%emt 0:01:04]} 30. Qd2 {[%emt 0:01:30]} Qe5 {[%emt 0:05:43]} 31. Bf1 {[%emt 0:01:13]} Rxc1 {[%emt 0:03:43]} 32. Rxc1 {[%emt 0:00:02]} Rxc1 {[%emt 0:00:09]} 33. Qxc1 {[%emt 0:00:04]} Bxa2 {[%emt 0:00:11]} 34. Qc8+ {[%emt 0:00:29]} Bg8 {[%emt 0:01:02]} 35. Bxa6 {[%emt 0:00:34]} e3 {[%emt 0:01:05]} 36. fxe3 {[%emt 0:00:28]} Qxe3+ {[%emt 0:00:22]} 37. Kg2 {[%emt 0:00:34]} Qd2+ {[%emt 0:01:11]} 38. Kh3 {[%emt 0:00:29]} Qxb4 {[%emt 0:00:23]} 39. Qf8 {[%emt 0:00:24]} Qg4+ {[%emt 0:02:09]} 40. Kg2 {[%emt 0:00:06]} Qe4+ {[%emt 0:00:05]} 41. Kh3 {[%emt 0:30:17]} Qe5 {[%emt 0:30:07]} 42. Bc4 {[%emt 0:00:15]} Qg7 {[%emt 0:00:08]} 43. Qd8 {[%emt 0:00:59]} h5 {[%emt 0:08:55]} 44. Bxg8 {[%emt 0:00:52]} Qxg8 {[%emt 0:01:34]} 45. Qxd6 {[%emt 0:00:13]} Qc4 {[%emt 0:08:21]} 46. Qxb6 {[%emt 0:07:39]} Qg4+ {[%emt 0:00:00]} 47. Kg2 {[%emt 0:00:00]} Qe4+ {[%emt 0:00:00]} 48. Kg1 {[%emt 0:00:00]} Qe1+ {[%emt 0:00:00]} 49. Kg2 {[%emt 0:00:00]} Qe2+ {[%emt 0:00:00]} 50. Kh3 {[%emt 0:00:00]} Qe8 {[%emt 0:00:00]} 51. Qd4+ {[%emt 0:00:00]} Kh7 {[%emt 0:00:00]} 52. Qd6 {[%emt 0:00:00]} Qf7 {[%emt 0:00:00]} 53. Qe5 {[%emt 0:00:00]} Qd7 {[%emt 0:00:00]} 54. Kg2 {[%emt 0:00:00]} g5 {[%emt 0:00:00]} 55. Qf6 {[%emt 0:00:00]} g4 {[%emt 0:00:00]} 56. Qg5 {[%emt 0:00:00]} Qf7 {[%emt 0:00:00]} 57. Kg1 {[%emt 0:00:00]} Qa7+ {[%emt 0:00:00]} 58. Kg2 {[%emt 0:00:00]} Qb7+ {[%emt 0:00:00]} 59. Kg1 {[%emt 0:00:00]} Qb1+ {[%emt 0:00:00]} 60. Kg2 {[%emt 0:00:00]} Qe4+ {[%emt 0:00:00]} 61. Kg1 1/2-1/2

[Event "CZE-ch Youth B16 2022"]
[Site "Luhacovice"]
[Date "2022.03.14"]
[Round "4.8"]
[White "Zezula, Jakub"]
[Black "Winter, Ondrej"]
[Result "0-1"]
[ECO "B38"]
[WhiteElo "1891"]
[BlackElo "2147"]
[Annotator "ChessBase"]
[PlyCount "134"]
[EventDate "2022.03.12"]
[EventType "swiss"]
[EventCountry "CZE"]
[SourceTitle "playchess.com"]
[Source "ChessBase"]
[SourceQuality "1"]
[TimeControl "40/5400+30:1800+30"]

1. e4 {[%emt 0:00:06]} c5 {[%emt 0:00:06]} 2. Nf3 {[%emt 0:00:17]} Nc6 {[%emt 0:00:02]} 3. d4 {[%emt 0:00:08]} cxd4 4. Nxd4 {[%emt 0:00:08]} g6 {[%emt 0:00:04]} 5. c4 {[%emt 0:00:51]} Bg7 {[%emt 0:00:04]} 6. Be3 {[%emt 0:00:07]} Nf6 {[%emt 0:00:03]} 7. Nc3 {[%emt 0:00:07]} d6 {[%emt 0:00:03]} 8. Be2 {[%emt 0:00:07]} O-O {[%emt 0:00:04]} 9. O-O {[%emt 0:00:06]} Bd7 {[%emt 0:00:01]} 10. Nc2 {[%emt 0:00:30]} Be6 {[%emt 0:04:13]} 11. f3 {[%emt 0:02:34]} Nd7 {[%emt 0:01:29]} 12. Qd2 {[%emt 0:01:32]} Nde5 {[%emt 0:02:20]} 13. Nd5 {[%emt 0:04:27]} f5 {[%emt 0:19:16]} 14. Nd4 {[%emt 0:06:48]} Nxd4 {[%emt 0:02:36]} 15. Bxd4 {[%emt 0:00:19]} Bxd5 {[%emt 0:16:43]} 16. cxd5 {[%emt 0:12:01]} fxe4 {[%emt 0:10:17]} 17. fxe4 {[%emt 0:01:00]} Nd7 {[%emt 0:01:02]} 18. Rxf8+ {[%emt 0:03:17]} Qxf8 {[%emt 0:01:28]} 19. Be3 {[%emt 0:00:20]} Nc5 {[%emt 0:07:57]} 20. Bxc5 {[%emt 0:04:35]} dxc5 {[%emt 0:00:32]} 21. Rf1 {[%emt 0:04:17]} Bd4+ {[%emt 0:02:06]} 22. Kh1 {[%emt 0:00:21]} Qg7 {[%emt 0:00:15]} 23. b3 {[%emt 0:00:17]} Rf8 {[%emt 0:00:31]} 24. Rxf8+ {[%emt 0:02:06]} Qxf8 {[%emt 0:00:09]} 25. Bc4 {[%emt 0:00:52]} Kg7 {[%emt 0:00:35]} 26. Qe2 {[%emt 0:00:50]} Qf4 {[%emt 0:01:56]} 27. g3 {[%emt 0:00:36]} Qc1+ {[%emt 0:01:39]} 28. Kg2 {[%emt 0:03:16]} Qa1 {[%emt 0:09:29]} 29. Kh3 {[%emt 0:05:38]} a6 {[%emt 0:03:03]} 30. a4 {[%emt 0:01:36]} h5 {[%emt 0:03:44]} 31. Qf3 {[%emt 0:04:21]} Bf6 {[%emt 0:02:32]} 32. Qe2 {[%emt 0:02:41]} Qe5 {[%emt 0:05:50]} 33. Qf3 {[%emt 0:03:46]} Qd4 {[%emt 0:00:35]} 34. Qd3 {[%emt 0:03:01]} Qe5 {[%emt 0:00:36]} 35. Qf3 {[%emt 0:00:14]} Qa1 {[%emt 0:00:05]} 36. Qe2 {[%emt 0:04:36]} Kh6 {[%emt 0:00:09]} 37. Kg2 {[%emt 0:01:35]} g5 {[%emt 0:00:38]} 38. Qf2 {[%emt 0:02:06]} Qb1 {[%emt 0:01:44]} 39. Qf3 {[%emt 0:02:10]} Qe1 {[%emt 0:05:16]} 40. Be2 {[%emt 0:01:37]} g4 {[%emt 0:00:41]} 41. Qf4+ {[%emt 0:31:37]} Kg7 {[%emt 0:04:29]} 42. Qe3 {[%emt 0:00:00]} Qc3 {[%emt 0:05:48]} 43. Qxc3 {[%emt 0:00:00]} Bxc3 {[%emt 0:00:02]} 44. h3 {[%emt 0:00:00]} gxh3+ {[%emt 0:00:05]} 45. Kxh3 {[%emt 0:00:00]} Kg6 {[%emt 0:00:00]} 46. g4 {[%emt 0:00:00]} hxg4+ {[%emt 0:00:25]} 47. Kxg4 {[%emt 0:00:00]} Kf6 {[%emt 0:00:06]} 48. Bd3 {[%emt 0:00:00]} Ke5 {[%emt 0:00:24]} 49. Kg5 {[%emt 0:00:00]} Be1 {[%emt 0:03:50]} 50. Kg6 {[%emt 0:00:00]} Kd4 {[%emt 0:00:14]} 51. Bc2 {[%emt 0:00:00]} Kc3 {[%emt 0:00:07]} 52. Bd1 {[%emt 0:00:00]} Kd2 {[%emt 0:01:58]} 53. Bg4 {[%emt 0:00:00]} Kc3 {[%emt 0:00:06]} 54. Be6 {[%emt 0:00:00]} Kd4 {[%emt 0:03:09]} 55. Kf5 {[%emt 0:00:00]} Bg3 {[%emt 0:03:27]} 56. Bc8 {[%emt 0:00:00]} b5 {[%emt 0:01:35]} 57. axb5 {[%emt 0:00:00]} axb5 {[%emt 0:03:06]} 58. Ba6 {[%emt 0:00:00]} c4 {[%emt 0:03:15]} 59. bxc4 {[%emt 0:00:00]} bxc4 {[%emt 0:00:01]} 60. Bxc4 {[%emt 0:00:00]} Kxc4 {[%emt 0:00:24]} 61. Ke6 {[%emt 0:00:00]} Bd6 {[%emt 0:00:15]} 62. e5 {[%emt 0:00:00]} Kc5 {[%emt 0:00:35]} 63. Kf5 {[%emt 0:00:00]} Kxd5 {[%emt 0:00:13]} 64. exd6 {[%emt 0:00:00]} exd6 {[%emt 0:00:15]} 65. Kf4 {[%emt 0:00:00]} Kd4 {[%emt 0:00:17]} 66. Kf3 {[%emt 0:00:00]} Kd3 {[%emt 0:00:20]} 67. Kf2 {[%emt 0:00:00]} d5 {[%emt 0:00:32]} 0-1

[Event "CZE-ch Youth B16 2022"]
[Site "Luhacovice"]
[Date "2022.03.14"]
[Round "4.9"]
[White "Hak, David"]
[Black "Oborny, Stanislav"]
[Result "1-0"]
[ECO "D35"]
[WhiteElo "2132"]
[BlackElo "1674"]
[Annotator "ChessBase"]
[PlyCount "87"]
[EventDate "2022.03.12"]
[EventType "swiss"]
[EventCountry "CZE"]
[SourceTitle "playchess.com"]
[Source "ChessBase"]
[SourceQuality "1"]
[TimeControl "40/5400+30:1800+30"]

1. d4 Nf6 2. c4 e6 3. Nc3 d5 4. cxd5 exd5 5. Bg5 Be7 6. e3 O-O 7. Bd3 c6 8. Qc2 h6 9. h4 Na6 10. a3 Nc7 11. Nf3 Ne6 12. Bxf6 Bxf6 13. g4 Re8 14. O-O-O b5 15. Rdg1 a5 16. g5 hxg5 17. hxg5 Nxg5 18. Nxg5 Bxg5 19. Rh5 Bf6 20. Rgh1 Kf8 21. Nxd5 g6 22. Nxf6 Qxf6 23. Rh8+ Ke7 24. Qc5+ Kd7 25. Rxe8 Kxe8 26. d5 Bd7 27. dxc6 Bxc6 28. Bxb5 Bxb5 29. Qxb5+ Kf8 30. Qc5+ Kg8 31. Qc3 Qxc3+ 32. bxc3 Rb8 33. Kc2 Kg7 34. Rb1 Rh8 35. c4 Kf6 36. Kc3 Rh2 37. Rb2 Ke6 38. Rd2 g5 39. c5 g4 40. c6 Rh5 41. Kc4 Rh8 42. Kc5 Rc8 43. Kb6 Rb8+ 44. Ka7 1-0

[Event "CZE-ch Youth B16 2022"]
[Site "Luhacovice"]
[Date "2022.03.14"]
[Round "4.10"]
[White "Mrazek, Roman"]
[Black "Vaclavik, Jan"]
[Result "0-1"]
[ECO "B32"]
[WhiteElo "1820"]
[BlackElo "1997"]
[Annotator "ChessBase"]
[PlyCount "44"]
[EventDate "2022.03.12"]
[EventType "swiss"]
[EventCountry "CZE"]
[SourceTitle "playchess.com"]
[Source "ChessBase"]
[SourceQuality "1"]
[TimeControl "40/5400+30:1800+30"]

1. e4 {[%emt 0:00:12]} c5 {[%emt 0:00:19]} 2. Nf3 {[%emt 0:00:18]} Nc6 {[%emt 0:00:07]} 3. d4 {[%emt 0:00:18]} cxd4 {[%emt 0:00:15]} 4. Nxd4 {[%emt 0:00:05]} e5 {[%emt 0:00:41]} 5. Nb5 {[%emt 0:01:46]} d6 {[%emt 0:00:08]} 6. c4 {[%emt 0:00:40]} a6 {[%emt 0:00:26]} 7. N5c3 {[%emt 0:00:33]} Nf6 {[%emt 0:01:06]} 8. Bg5 {[%emt 0:02:59]} Be7 {[%emt 0:00:30]} 9. Bxf6 {[%emt 0:00:39]} Bxf6 {[%emt 0:00:07]} 10. Nd5 {[%emt 0:00:27]} Bg5 {[%emt 0:01:09]} 11. Nbc3 {[%emt 0:01:22]} Be6 {[%emt 0:01:14]} 12. Bd3 {[%emt 0:02:22]} O-O {[%emt 0:13:16]} 13. O-O {[%emt 0:04:41]} Rc8 {[%emt 0:07:10]} 14. b4 {[%emt 0:11:10]} Nd4 {[%emt 0:05:55]} 15. Qa4 {[%emt 0:22:15]} Bd2 {[%emt 0:05:17]} 16. b5 {[%emt 0:07:37]} Qg5 {[%emt 0:11:34]} 17. f4 {[%emt 0:18:55]} exf4 {[%emt 0:01:50]} 18. Kh1 {[%emt 0:01:40]} Bg4 {[%emt 0:16:47]} 19. Qa3 {[%emt 0:07:22]} f3 {[%emt 0:04:32]} 20. g3 {[%emt 0:00:48]} Bh3 {[%emt 0:02:26]} 21. Qxd6 {[%emt 0:03:28]} Rcd8 {[%emt 0:02:08]} 22. Qb6 {[%emt 0:01:12]} Bg2+ {[%emt 0:00:06]} 0-1

[Event "CZE-ch Youth B16 2022"]
[Site "Luhacovice"]
[Date "2022.03.14"]
[Round "4.11"]
[White "Trojan, Matyas"]
[Black "Vasinek, Martin"]
[Result "1/2-1/2"]
[ECO "B35"]
[WhiteElo "1582"]
[BlackElo "1594"]
[Annotator "NA RC"]
[PlyCount "132"]
[EventDate "2022.03.12"]
[EventType "swiss"]
[EventCountry "CZE"]
[SourceTitle "playchess.com"]
[Source "ChessBase"]
[SourceQuality "1"]
[TimeControl "40/5400+30:1800+30"]

1. e4 {[%emt 0:00:03]} c5 {[%emt 0:00:07]} 2. Nf3 {[%emt 0:00:04]} Nc6 {[%emt 0:00:05]} 3. d4 {[%emt 0:00:04]} cxd4 {[%emt 0:00:03]} 4. Nxd4 {[%emt 0:00:04]} g6 {[%emt 0:00:06]} 5. Nc3 {[%emt 0:00:07]} Bg7 {[%emt 0:00:05]} 6. Be3 {[%emt 0:00:12]} Nf6 {[%emt 0:00:05]} 7. Bc4 {[%emt 0:00:10]} Qa5 {[%emt 0:00:32]} 8. f3 {[%emt 0:01:46]} Qb4 {[%emt 0:10:01]} 9. Ndb5 {[%emt 0:02:43]} O-O {[%emt 0:06:15]} 10. Bb3 {[%emt 0:09:45]} Ne8 {[%emt 0:10:30]} 11. a3 {[%emt 0:07:39]} Qa5 {[%emt 0:02:36]} 12. Nd4 {[%emt 0:01:44]} Nc7 {[%emt 0:12:52]} 13. Qd2 {[%emt 0:08:30]} d6 {[%emt 0:09:58]} 14. O-O-O {[%emt 0:04:04]} Nxd4 {[%emt 0:09:55]} 15. Bxd4 {[%emt 0:00:42]} Be6 {[%emt 0:02:14]} 16. Bxg7 {[%emt 0:04:26]} Kxg7 {[%emt 0:00:11]} 17. Qd4+ {[%emt 0:00:54]} Kg8 {[%emt 0:00:32]} 18. Nd5 {[%emt 0:01:12]} Nxd5 {[%emt 0:04:29]} 19. exd5 {[%emt 0:01:31]} Bd7 {[%emt 0:00:21]} 20. h4 {[%emt 0:01:41]} Qc5 {[%emt 0:02:38]} 21. Qf4 {[%emt 0:05:29]} f6 {[%emt 0:00:59]} 22. Qh6 {[%emt 0:03:56]} Rf7 {[%emt 0:01:24]} 23. c3 {[%emt 0:10:29]} Raf8 {[%emt 0:03:06]} 24. Rd4 {[%emt 0:03:23]} a5 {[%emt 0:04:03]} 25. g4 {[%emt 0:04:29]} Rg7 {[%emt 0:01:57]} 26. Bc2 {[%emt 0:05:39]} b6 {[%emt 0:09:08]} 27. g5 {[%emt 0:09:12]} fxg5 {[%emt 0:03:59]} 28. h5 {[%emt 0:02:32]} gxh5 {[%emt 0:02:13]} 29. Qxh5 {[%emt 0:03:36]} Bf5 {[%emt 0:00:12]} 30. Bxf5 {[%emt 0:04:15]} Rxf5 {[%emt 0:00:01]} 31. Re1 {[%emt 0:02:13]} Qb5 {[%emt 0:00:53]} 32. c4 {[%emt 0:02:15]} Qb3 {[%emt 0:00:43]} 33. Rde4 {[%emt 0:00:46]} Qxf3 {[%emt 0:01:31]} 34. Qe8+ {[%emt 0:00:41]} Rf8 {[%emt 0:00:02]} 35. Qb5 {[%emt 0:01:03]} Qf2 {[%emt 0:00:48]} 36. Rxe7 {[%emt 0:00:39]} Rxe7 {[%emt 0:00:59]} 37. Rxe7 {[%emt 0:00:03]} Qc5 {[%emt 0:00:02]} 38. Qb3 {[%emt 0:00:54]} Qg1+ {[%emt 0:01:00]} 39. Kd2 {[%emt 0:00:08]} Rf2+ {[%emt 0:00:18]} 40. Re2 {[%emt 0:00:23]} Rxe2+ {[%emt 0:00:13]} 41. Kxe2 {[%emt 0:30:03]} Qh2+ {[%emt 0:30:31]} 42. Kf1 {[%emt 0:01:23]} Qf4+ {[%emt 0:01:15]} 43. Kg2 {[%emt 0:00:00]} Qe4+ {[%emt 0:00:00]} 44. Kf1 {[%emt 0:00:00]} h5 {[%emt 0:00:00]} 45. Kf2 {[%emt 0:00:00]} Qd4+ {[%emt 0:00:00]} 46. Kg2 {[%emt 0:00:00]} h4 {[%emt 0:00:00]} 47. Qc2 {[%emt 0:00:00]} Kg7 {[%emt 0:00:00]} 48. Qf5 {[%emt 0:00:00]} Qf6 {[%emt 0:00:00]} 49. Qd7+ {[%emt 0:00:00]} Kh6 {[%emt 0:00:00]} 50. b4 {[%emt 0:00:00]} Qb2+ {[%emt 0:00:00]} 51. Kf1 {[%emt 0:00:00]} Qc1+ {[%emt 0:00:00]} 52. Kg2 {[%emt 0:00:00]} Qd2+ {[%emt 0:00:00]} 53. Kg1 {[%emt 0:00:00]} Qe1+ {[%emt 0:00:00]} 54. Kg2 {[%emt 0:00:00]} Qg3+ {[%emt 0:00:00]} 55. Kf1 {[%emt 0:00:00]} Qf4+ {[%emt 0:00:00]} 56. Kg2 {[%emt 0:00:00]} Qe4+ {[%emt 0:00:00]} 57. Kg1 {[%emt 0:00:00]} Qd4+ {[%emt 0:00:55]} 58. Kg2 {[%emt 0:00:00]} Qb2+ {[%emt 0:01:18]} 59. Kg1 {[%emt 0:00:18]} Qc1+ {[%emt 0:00:02]} 60. Kg2 {[%emt 0:01:30]} Qc2+ {[%emt 0:00:50]} 61. Kg1 {[%emt 0:00:34]} Qd1+ {[%emt 0:00:12]} 62. Kf2 {[%emt 0:01:44]} Qd2+ {[%emt 0:00:35]} 63. Kf1 {[%emt 0:01:12]} Qf4+ {[%emt 0:00:21]} 64. Kg2 {[%emt 0:00:52]} g4 {[%emt 0:03:16]} 65. Qe6+ {[%emt 0:00:58]} Kg5 {[%emt 0:00:41]} 66. Qg8+ {[%emt 0:00:45]} Kh5 {[%emt 0:01:31]} 1/2-1/2

[Event "CZE-ch Youth B16 2022"]
[Site "Luhacovice"]
[Date "2022.03.14"]
[Round "4.12"]
[White "Zrubek, Adam"]
[Black "Simek, Viktor"]
[Result "0-1"]
[ECO "C89"]
[WhiteElo "1661"]
[BlackElo "1527"]
[Annotator "NA"]
[PlyCount "57"]
[EventDate "2022.03.12"]
[EventType "swiss"]
[EventCountry "CZE"]
[SourceTitle "playchess.com"]
[Source "ChessBase"]
[SourceQuality "1"]
[TimeControl "40/5400+30:1800+30"]

1. e4 e5 2. Nf3 Nc6 3. Bb5 a6 4. Ba4 Nf6 5. O-O Be7 6. Re1 b5 7. Bb3 O-O 8. c3 d5 9. exd5 Nxd5 10. Nxe5 Nxe5 11. Rxe5 c6 12. d4 Bd6 13. Re1 Qh4 14. g3 Qh3 15. Qf3 Bg4 16. Qg2 Qh5 17. Bxd5 cxd5 18. Be3 Bf3 19. Qf1 f5 20. Bc1 f4 21. Nd2 fxg3 22. fxg3 Bxg3 23. Nxf3 Rxf3 24. hxg3 Rxg3+ 25. Qg2 Rxg2+ 26. Kxg2 Qg4+ 27. Kf2 Rf8+ 28. Ke3 Qd7 29. Rh1 0-1